bitfinex/quotes_ETHUSD_20260109
["timestamp","ask_amount","ask_price","bid_price","bid_amount"]
[1767956991340,0.39847665,3094.7,3094.6,0.002]
[1767956991536,1.3728274,3094.7,3094.3,0.002]
[1767956991706,0.97435075,3094.6,3094.3,0.002]
[1767956993538,0.39847665,3094.7,3094.3,0.002]
[1767956994953,1.4347567,3094.6,3094.3,0.002]
[1767956995816,0.46040595,3094.6,3094.3,0.002]
[1767956996335,0.39847665,3094.7,3094.3,0.002]
[1767956996644,0.254,3094.9,3094.3,0.002]
[1767956996821,3.48512754,3094.9,3094.3,0.002]
[1767956998331,0.254,3094.9,3094.3,0.002]
[1767956998551,3.48512676,3094.9,3094.3,0.002]
[1767957000252,0.254,3094.9,3094.3,0.002]
[1767957000442,0.4459422,3094.8,3094.3,0.99595394]
[1767957000644,0.254,3095.0,3094.3,1.02827142]
[1767957002228,3.23173633,3095.1,3094.3,1.01408001]
[1767957002533,3.48573633,3095.1,3094.4,0.99395394]
[1767957003236,3.48573633,3095.1,3094.6,0.002]
[1767957003554,0.001,3094.7,3094.6,0.002]
[1767957004729,0.994253,3094.7,3094.3,0.002]
[1767957005034,0.001,3094.7,3094.3,0.002]
[1767957005221,0.994253,3094.7,3094.3,0.002]
[1767957006963,0.993253,3094.5,3094.0,0.002]
[1767957007138,0.99406745,3094.5,3094.0,0.002]
[1767957007338,0.00081445,3094.5,3094.0,0.002]
[1767957007932,0.00081445,3094.5,3094.0,0.97073769]
[1767957008365,0.00081445,3094.5,3094.0,1.00305831]
[1767957008697,0.00081445,3094.5,3094.0,0.97073769]
[1767957008825,0.99406745,3094.5,3094.0,0.002]
[1767957010625,0.993253,3094.4,3094.0,0.002]
[1767957011024,0.993253,3094.3,3094.0,0.002]
[1767957011263,0.99125301,3094.3,3094.0,0.002]
[1767957015576,4.22300742,3094.3,3094.0,0.002]
[1767957015895,4.00366873,3093.9,3093.6,0.002]
[1767957016047,4.00366873,3093.9,3093.3,0.002]
[1767957016048,0.993253,3093.9,3093.3,0.002]
[1767957016243,0.993253,3094.1,3093.3,0.002]
[1767957016448,0.993253,3094.0,3093.3,3.23470345]
[1767957016682,0.993253,3094.0,3093.4,3.23266873]
[1767957016886,0.001,3094.4,3093.6,0.96873769]
[1767957017188,0.001,3094.4,3093.8,0.96873769]
[1767957017872,0.001,3094.4,3093.9,0.03232166]
[1767957018072,0.001,3094.4,3093.8,0.96873769]
[1767957019093,0.001,3094.4,3093.8,4.20092267]
[1767957019395,0.001,3094.4,3093.8,4.94426002]
[1767957021488,0.001,3094.4,3093.9,0.03232166]
[1767957021999,0.001,3094.4,3093.8,4.94426002]
[1767957023093,0.001,3094.4,3093.9,0.03232166]
[1767957023313,0.001,3094.7,3094.2,0.96873769]
[1767957023466,0.001,3094.7,3094.4,0.96873769]
[1767957023662,0.001,3094.7,3094.5,1.38878633]
[1767957023885,0.001,3094.7,3094.5,0.96873769]
[1767957024086,0.001,3094.7,3094.3,0.96873769]
[1767957024684,0.001,3094.7,3094.2,3.23182579]
[1767957025509,0.001,3094.7,3094.2,4.20056348]
[1767957025796,0.001,3094.7,3094.3,0.96873769]
[1767957025962,0.001,3094.7,3094.4,1.71197935]
[1767957027507,0.001,3094.7,3094.4,0.74324166]
[1767957028897,0.001,3094.7,3094.4,3.97488317]
[1767957029068,0.001,3094.7,3094.4,0.74324166]
[1767957029267,0.001,3094.7,3094.3,3.23170749]
[1767957029981,0.001,3094.7,3094.2,4.20054496]
[1767957030187,0.001,3094.7,3094.1,0.25481526]
[1767957030188,0.001,3094.7,3094.1,3.48672488]
[1767957030493,0.001,3094.7,3094.2,3.23182475]
[1767957031604,0.001,3094.7,3094.2,4.20056244]
[1767957031911,0.001,3094.7,3094.2,4.96929398]
[1767957032306,0.9751914,3094.9,3094.2,4.96929398]
[1767957032499,0.9751914,3094.9,3094.2,8.20114712]
[1767957032889,0.95260947,3095.1,3094.3,0.91782312]
[1767957033094,0.95260947,3095.1,3094.2,7.23240943]
[1767957033603,0.95180675,3095.0,3094.3,3.8512849]
[1767957034204,0.95180675,3095.0,3094.3,0.61958941]
[1767957034501,0.95180675,3095.0,3094.1,3.23273758]
[1767957034674,0.95180675,3095.0,3094.1,3.23275482]
[1767957034869,6.46264978,3095.1,3094.1,0.00081526]
[1767957034870,0.95180675,3094.5,3094.1,0.00081526]
[1767957039095,0.001,3094.2,3094.1,0.00081526]
[1767957041475,0.95180675,3094.8,3094.1,0.00081526]
[1767957041802,1.92513634,3094.8,3094.1,0.00081526]
[1767957043205,1.92513634,3094.8,3094.1,4.15059597]
[1767957043720,0.254,3094.9,3094.2,0.91782312]
[1767957044276,1.20580675,3094.9,3094.2,0.91782312]
[1767957045699,4.43694376,3094.9,3094.2,0.91782312]
[1767957045903,4.43694376,3094.9,3094.1,3.23277285]
[1767957046301,4.43694376,3094.9,3094.1,4.15059597]
[1767957046499,7.44766774,3094.9,3094.1,4.15059597]
[1767957046701,8.51560903,3094.9,3094.1,4.15059597]
[1767957047090,0.95180675,3094.8,3094.1,4.15059597]
[1767957048113,0.95180675,3094.8,3094.2,3.23184739]
[1767957048416,0.95180675,3094.8,3094.1,4.15054986]
[1767957049508,3.99559261,3094.8,3094.1,0.00081526]
[1767957050320,3.99559261,3094.8,3094.1,0.99914229]
[1767957050688,3.99559261,3094.8,3094.4,0.002]
[1767957052403,3.01072398,3094.8,3094.4,0.002]
[1767957055933,7.22671973,3094.9,3094.4,0.002]
[1767957057219,3.99559261,3094.9,3094.4,0.002]
[1767957058537,3.01072398,3094.7,3094.4,0.002]
[1767957059429,3.99559261,3094.9,3094.4,0.002]
[1767957059611,5.06682677,3094.9,3094.4,0.002]
[1767957060514,8.29796208,3094.9,3094.4,0.002]
[1767957060711,5.06682677,3094.9,3094.4,0.002]
[1767957062335,8.29795685,3094.9,3094.4,0.002]
[1767957062841,5.05444588,3094.9,3094.4,0.002]
[1767957063026,0.001,3094.6,3094.4,0.002]
[1767957064247,0.001,3094.6,3094.4,0.9316739]
[1767957067359,0.001,3094.6,3094.4,0.002]
[1767957074556,0.001,3094.6,3094.5,0.9296739]
[1767957074736,0.00080272,3095.1,3094.9,3.01072398]
[1767957074933,0.00080272,3095.1,3094.9,7.17142048]
[1767957075145,0.00080272,3095.1,3095.0,0.9296739]
[1767957077558,0.00080272,3095.1,3095.0,4.16069167]
[1767957077757,0.00080272,3095.1,3095.0,1.66886451]
[1767957078441,7.18445398,3095.9,3095.1,0.9296739]
[1767957078442,4.42770713,3095.9,3095.1,0.9296739]
[1767957078828,7.43843111,3095.9,3095.1,0.9296739]
[1767957079040,4.20830036,3095.9,3095.1,0.9296739]
[1767957079240,7.43841186,3095.9,3095.1,0.9296739]
[1767957079556,4.20830036,3095.9,3095.1,5.13660902]
[1767957079752,4.20830036,3095.9,3095.2,0.9296739]
[1767957080056,1.19757638,3095.9,3095.2,0.9296739]
[1767957080451,4.42765561,3095.9,3095.2,0.9296739]
[1767957081657,1.19757638,3095.9,3095.2,0.9296739]
[1767957081855,1.19757638,3095.9,3095.2,4.160459]
[1767957082151,3.95430036,3095.8,3095.2,0.41635108]
[1767957082355,0.94357638,3095.7,3095.0,0.9296739]
[1767957082554,0.94357638,3095.7,3094.9,0.254]
[1767957082725,0.94357638,3095.5,3094.8,0.9296739]
[1767957082930,6.7142253,3095.9,3094.7,0.002]
[1767957082931,3.01072398,3095.0,3094.7,0.002]
[1767957083131,3.01072398,3094.9,3094.7,0.002]
[1767957084057,4.3497304,3094.9,3094.4,0.00280288]
[1767957084258,0.94357638,3094.8,3094.4,0.00280288]
[1767957084454,0.94357638,3095.0,3094.4,0.00280288]
[1767957085965,6.24164265,3095.1,3094.4,0.93247678]
[1767957086130,7.18521903,3095.1,3094.4,0.93247678]
[1767957086744,7.18521903,3095.1,3095.0,0.002]
[1767957086944,8.22681286,3095.1,3094.4,0.93247678]
[1767957087155,3.95430036,3094.9,3094.4,0.00280288]
[1767957087361,3.95430036,3094.9,3094.6,0.002]
[1767957087768,1.98517021,3095.1,3094.6,0.002]
[1767957088072,4.1745361,3095.1,3094.6,0.002]
[1767957090174,0.94357638,3095.1,3094.6,0.002]
[1767957090472,4.17433851,3095.3,3094.6,0.9316739]
[1767957090653,0.254,3095.2,3094.6,0.9316739]
[1767957092451,3.23063946,3095.4,3094.7,0.9296739]
[1767957092652,4.52627581,3095.4,3094.7,0.9296739]
[1767957092844,4.52627171,3095.4,3094.7,0.9296739]
[1767957093470,0.254,3095.4,3094.7,0.9296739]
[1767957093821,7.44876285,3095.5,3094.7,0.9296739]
[1767957093944,4.43803887,3095.5,3094.8,0.93756615]
[1767957094145,3.48454984,3095.5,3094.8,0.93756615]
[1767957094691,4.1849033,3095.6,3094.8,0.93756615]
[1767957094991,4.18491661,3095.6,3094.9,0.93756615]
[1767957095345,3.96521301,3095.6,3094.9,0.93756615]
[1767957095573,7.19563043,3095.6,3094.9,0.93756615]
[1767957096347,3.96521301,3095.6,3094.9,4.16865386]
[1767957096850,7.19562826,3095.6,3094.9,0.93756615]
[1767957097064,7.19562826,3095.6,3094.9,1.78170473]
[1767957097381,3.96521301,3095.6,3094.9,5.01282625]
[1767957098781,3.96521301,3095.6,3094.9,1.78170473]
[1767957099008,3.96521301,3095.6,3094.9,4.16868149]
[1767957099208,7.19560656,3095.6,3094.9,0.93756615]
[1767957099816,3.96521301,3095.6,3094.9,4.16868214]
[1767957100114,0.001,3095.6,3095.0,0.93756615]
[1767957101777,3.01172398,3095.6,3094.8,4.16878702]
[1767957102072,3.96521301,3095.6,3094.8,5.21007977]
[1767957102695,3.96521301,3095.6,3094.9,3.23109921]
[1767957102899,7.19560878,3095.6,3094.8,5.21002929]
[1767957103101,0.95348903,3095.5,3094.8,1.04129275]
[1767957103290,3.96421301,3095.4,3094.6,4.17095303]
[1767957103491,3.96421301,3095.4,3094.7,4.16881988]
[1767957104003,3.01072398,3095.4,3094.7,4.16881988]
[1767957104810,3.01072398,3095.4,3094.8,4.16877901]
[1767957105115,7.19460878,3095.6,3094.9,0.4168779]
[1767957105501,7.19460878,3095.6,3094.9,1.35444405]
[1767957105502,4.1838848,3095.6,3094.9,1.35444405]
[1767957106574,0.95348903,3095.6,3094.9,1.35444405]
[1767957106717,3.26472398,3095.7,3095.0,0.93756615]
[1767957106912,0.95348903,3095.8,3095.1,4.16847952]
[1767957107217,1.20748903,3096.0,3095.3,0.93756615]
[1767957107526,4.18348644,3096.0,3095.3,0.93756615]
[1767957108137,0.95348903,3096.0,3095.3,0.93756615]
[1767957108446,7.47524248,3096.1,3095.3,0.93756615]
[1767957108659,4.4645185,3096.1,3095.3,0.93756615]
[1767957108826,4.4645185,3096.1,3095.3,1.75346625]
[1767957109451,1.23461488,3096.1,3095.4,4.14289292]
[1767957109749,1.23461488,3096.1,3095.4,0.91229268]
[1767957110521,4.46448596,3096.1,3095.4,0.91229268]
[1767957113436,0.98061488,3096.0,3095.3,0.8159001]
[1767957114373,4.21060979,3096.0,3095.3,0.8159001]
[1767957115775,0.98061488,3095.9,3095.3,0.8159001]
[1767957115964,0.98061488,3095.9,3095.2,0.91229268]
[1767957116556,0.98061488,3095.9,3095.2,4.14308678]
[1767957117841,3.22999491,3096.0,3095.3,0.91229268]
[1767957118179,3.22999491,3096.0,3094.4,1.16909556]
[1767957118180,0.98061488,3095.3,3094.4,1.16909556]
[1767957118345,0.98061488,3095.3,3094.6,0.91429268]
[1767957118679,4.21111831,3095.5,3094.7,0.41458217]
[1767957118984,0.98061488,3095.4,3094.7,0.41458217]
[1767957120985,4.21122751,3095.4,3094.7,0.41458217]
[1767957121886,0.98061488,3095.3,3094.7,0.41458217]
[1767957122056,0.98061488,3095.1,3094.6,0.002]
[1767957128489,4.21157163,3095.1,3094.6,0.002]
[1767957128798,4.21157163,3095.1,3094.1,3.48675494]
[1767957128799,0.93286393,3094.7,3094.1,0.00081526]
[1767957129042,3.00828854,3094.2,3093.8,0.99635171]
[1767957129183,0.00081526,3094.5,3093.9,0.99835171]
[1767957129713,0.00081526,3094.5,3093.9,4.23044875]
[1767957130019,0.93367919,3094.5,3093.9,0.002]
[1767957131615,0.00081526,3094.5,3093.9,0.99835171]
[1767957132694,0.00081526,3094.5,3093.9,4.23046765]
[1767957132891,0.00081526,3094.5,3094.0,0.99635171]
[1767957133296,0.24958682,3094.8,3094.2,0.99635171]
[1767957133989,3.23108201,3095.0,3094.2,0.99635171]
[1767957134216,0.254,3094.9,3094.2,0.99635171]
[1767957134643,0.254,3094.9,3094.2,0.99835171]
[1767957135503,3.48519269,3094.9,3094.2,0.99835171]
[1767957135698,4.55101569,3094.9,3094.2,0.99835171]
[1767957136134,5.48387962,3094.9,3094.2,0.99835171]
[1767957139507,1.319823,3094.9,3094.2,0.99835171]
[1767957139708,0.254,3094.9,3094.3,0.99635171]
[1767957140541,3.23107885,3095.0,3094.3,0.99635171]
[1767957140840,3.48507885,3095.0,3094.3,0.99635171]
[1767957141441,0.00080288,3095.1,3094.4,0.99635171]
[1767957141612,0.25480288,3095.1,3094.4,0.99635171]
[1767957142237,0.25480288,3095.1,3094.6,0.99635171]
[1767957142714,3.48573887,3095.1,3094.6,0.99635171]
[1767957143419,0.25480288,3095.1,3094.6,0.99635171]
[1767957144075,0.00080288,3095.1,3094.6,0.99635171]
[1767957144234,0.00080288,3095.1,3094.7,0.99635171]
[1767957144430,0.00080288,3095.1,3094.8,0.99635171]
[1767957144946,0.00080288,3095.1,3094.7,0.42277675]
[1767957145152,0.00080288,3095.1,3094.6,0.99635171]
[1767957146367,0.00080288,3095.1,3094.6,0.99835171]
[1767957147448,0.00080288,3095.1,3094.6,4.22974917]
[1767957147773,0.00080288,3095.1,3094.7,0.99635171]
[1767957151884,0.00080288,3095.1,3094.8,0.99635171]
[1767957152062,0.00080288,3095.1,3095.0,0.99635171]
[1767957154465,0.00080288,3095.1,3094.9,0.42276802]
[1767957155195,0.00080288,3095.1,3094.9,3.65387727]
[1767957155996,0.00080288,3095.1,3094.9,0.42276802]
[1767957156386,0.00080288,3095.1,3094.8,0.95088313]
[1767957157073,0.00080288,3095.1,3094.8,4.18209939]
[1767957157272,0.00080288,3095.1,3094.6,3.23340938]
[1767957157273,0.00080288,3095.1,3094.6,0.002]
[1767957157492,0.98505752,3095.1,3094.6,0.002]
[1767957158002,3.99254318,3095.0,3094.6,0.002]
[1767957158217,0.98425464,3094.9,3094.6,0.002]
[1767957159152,0.98505752,3095.1,3094.6,0.002]
[1767957164074,0.98165209,3095.1,3094.6,0.002]
[1767957168581,4.00533073,3095.0,3094.6,0.002]
[1767957168748,0.99492877,3094.9,3094.6,0.002]
[1767957169375,0.99492877,3094.9,3094.2,0.002]
[1767957169376,0.99492877,3094.7,3094.2,0.002]
[1767957169681,3.01040196,3094.4,3094.2,0.002]
[1767957169866,3.01040196,3094.4,3094.1,0.00081607]
[1767957172987,4.00533073,3094.4,3094.1,0.00081607]
[1767957182084,1.24892877,3094.8,3094.1,3.95473948]
[1767957182277,0.254,3094.9,3094.2,1.3389954]
[1767957182481,0.254,3094.9,3094.2,0.94352145]
[1767957183184,3.99229277,3094.8,3094.1,0.00081607]
[1767957183355,3.01040196,3094.6,3094.1,0.00081607]
[1767957183789,3.01040196,3094.4,3094.1,0.00081607]
[1767957183977,3.99229277,3094.4,3094.1,0.00081607]
[1767957187293,0.98189081,3094.4,3094.1,0.00081607]
[1767957187893,1.23589081,3094.9,3094.1,0.99143892]
[1767957188084,0.98269385,3095.1,3094.4,0.99062285]
[1767957188396,0.44675519,3095.0,3094.4,0.99062285]
[1767957188961,0.44675519,3095.0,3094.5,0.99062285]
[1767957190367,0.00080304,3095.1,3094.5,0.99062285]
[1767957190778,3.23174285,3095.1,3094.5,0.99062285]
[1767957193890,0.001,3094.7,3094.5,0.99062285]
[1767957196919,0.001,3094.7,3094.2,0.99062285]
[1767957202691,0.001,3094.7,3094.2,4.22247582]
[1767957202890,0.001,3094.7,3094.3,0.99062285]
[1767957205320,0.001,3094.4,3094.3,0.99062285]
[1767957206515,0.001,3094.4,3094.1,4.22335026]
[1767957207015,0.001,3094.4,3094.1,4.99449852]
[1767957208394,0.001,3094.4,3094.2,0.99062285]
[1767957209694,0.001,3094.4,3094.1,0.77196433]
[1767957210085,0.98166746,3094.8,3094.1,0.77196433]
[1767957210422,0.98166746,3094.8,3094.1,1.76258718]
[1767957211020,0.98166746,3094.8,3094.1,4.99454275]
[1767957213621,0.98461961,3094.7,3094.1,0.00081607]
[1767957215207,3.01040196,3094.8,3094.1,4.21774249]
[1767957215390,0.98461961,3094.9,3094.2,0.984986]
[1767957215717,6.24147479,3095.0,3094.2,4.21676686]
[1767957216726,7.2260944,3095.0,3094.2,4.21676686]
[1767957216922,0.001,3094.6,3094.2,4.21676686]
[1767957217225,0.001,3094.6,3094.3,0.42175829]
[1767957219527,0.001,3094.6,3094.3,3.65348695]
[1767957220025,0.001,3094.6,3094.3,1.40674429]
[1767957225934,0.001,3094.6,3094.3,0.42175829]
[1767957229641,0.001,3094.6,3094.5,0.002]
[1767957232714,0.001,3094.6,3094.5,1.23927461]
[1767957233209,1.18770262,3095.1,3094.5,0.32537346]
[1767957233413,0.93289958,3095.0,3094.5,0.32537346]
[1767957233610,0.25480304,3095.1,3094.5,0.32537346]
[1767957233833,0.25480304,3095.1,3094.6,3.2314354]
[1767957234033,0.25480304,3095.1,3094.7,0.67883149]
[1767957235813,0.00080304,3095.1,3094.7,0.67883149]
[1767957236615,4.16360491,3095.3,3094.7,0.67883149]
[1767957237118,0.93289958,3095.3,3094.7,0.67883149]
[1767957237752,0.93289958,3095.3,3094.6,4.14533641]
[1767957241446,0.93289958,3095.3,3094.6,3.23143526]
[1767957241752,0.001,3095.0,3094.8,0.002]
[1767957252741,0.95875836,3095.0,3094.8,0.002]
[1767957253954,0.001,3095.0,3094.8,0.002]
[1767957254526,0.001,3095.0,3094.9,3.23112216]
[1767957254723,0.001,3095.0,3094.9,3.97646246]
[1767957257357,0.001,3095.8,3094.9,3.97646246]
[1767957257358,3.23122486,3095.8,3095.0,0.95675037]
[1767957257534,0.001,3095.8,3095.2,0.95675037]
[1767957259338,0.001,3095.8,3095.3,3.23070461]
[1767957259867,0.001,3095.8,3095.3,6.46140922]
[1767957260161,0.001,3095.8,3095.4,0.74181596]
[1767957261672,0.001,3095.8,3095.5,3.23049588]
[1767957262765,0.001,3095.8,3095.4,1.69856633]
[1767957262766,0.001,3095.8,3095.4,8.15972132]
[1767957263758,0.001,3095.8,3095.4,4.92912108]
[1767957264071,0.001,3095.8,3095.4,8.15972132]
[1767957264250,0.001,3095.8,3095.5,0.64450204]
[1767957266066,0.001,3095.8,3095.6,3.23039152]
[1767957267071,0.001,3096.3,3095.6,3.23039152]
[1767957267248,0.95875836,3096.3,3095.6,3.23039152]
[1767957267649,0.95875836,3096.3,3095.6,6.46078304]
[1767957267850,0.95875836,3096.3,3095.7,0.7453403]
[1767957268045,0.001,3096.3,3095.8,3.23018282]
[1767957268250,0.001,3096.3,3095.8,4.18693319]
[1767957268683,0.001,3096.3,3095.8,3.23018282]
[1767957269377,0.001,3096.3,3095.8,6.46036564]
[1767957269581,0.001,3096.3,3095.9,0.72057059]
[1767957269775,0.001,3096.3,3095.9,1.67732096]
[1767957270275,0.001,3096.3,3096.0,3.22997416]
[1767957270978,0.001,3096.3,3096.0,6.45994832]
[1767957274266,0.001,3096.3,3096.1,0.94564438]
[1767957274467,0.001,3096.3,3096.0,6.45994832]
[1767957274468,0.90360779,3096.9,3096.2,1.61139179]
[1767957274677,0.001,3096.9,3096.3,0.94564438]
[1767957275456,0.001,3096.9,3096.5,0.94564438]
[1767957276385,0.001,3096.9,3096.6,7.404341]
[1767957276578,0.90260779,3097.4,3096.7,1.68607848]
[1767957277594,0.90260779,3097.4,3096.7,0.7404341]
[1767957277800,0.001,3096.6,3096.5,3.4834023]
[1767957278094,0.90260779,3097.1,3096.3,3.48365783]
[1767957278395,0.90260779,3097.1,3096.5,3.22943965]
[1767957278598,0.90260779,3097.1,3096.4,3.2295569]
[1767957279216,0.90260779,3097.1,3096.4,6.4591138]
[1767957279496,0.90260779,3097.1,3096.4,7.19699992]
[1767957280405,0.90260779,3097.1,3096.4,3.96744302]
[1767957281592,0.90260779,3097.1,3096.4,7.19699992]
[1767957282779,0.254,3097.4,3096.6,6.45869662]
[1767957283097,0.90260779,3097.4,3096.7,0.94564438]
[1767957283300,1.15842305,3097.6,3096.8,0.94564438]
[1767957283598,0.90442305,3097.6,3096.9,3.95624289]
[1767957283798,0.90442305,3097.6,3096.9,0.94564438]
[1767957284473,0.90442305,3097.6,3096.9,0.02264822]
[1767957284673,0.00181526,3097.6,3097.1,0.9682926]
[1767957284873,0.00181526,3097.6,3097.2,3.22872271]
[1767957285074,0.00181526,3097.6,3097.2,7.4030898]
[1767957285281,0.00181526,3097.6,3097.2,4.8401145]
[1767957286001,0.00181526,3097.6,3097.2,3.89447012]
[1767957287376,0.00181526,3097.6,3097.2,3.22872271]
[1767957289079,0.00181526,3097.6,3097.1,6.45765392]
[1767957289772,0.002,3097.3,3097.1,6.45765392]
[1767957290003,0.00181526,3097.6,3097.1,6.45765392]
[1767957290400,0.00181526,3097.6,3097.1,3.22882696]
[1767957290606,0.00181526,3097.6,3097.1,6.45765392]
[1767957291008,0.00181526,3097.6,3097.0,7.41391359]
[1767957291304,0.00181526,3097.6,3097.1,1.04412215]
[1767957292098,0.00181526,3097.6,3097.2,0.95605115]
[1767957292497,0.00181526,3097.6,3097.1,4.04878179]
[1767957293410,0.00181526,3097.6,3097.2,6.45744542]
[1767957293911,0.00181526,3097.6,3097.3,0.03228618]
[1767957294260,0.00181526,3097.6,3097.3,0.35951138]
[1767957294891,0.00181526,3097.6,3097.3,1.31556253]
[1767957295282,0.00181526,3097.6,3097.4,0.03228514]
[1767957295477,0.00181526,3097.6,3097.5,3.22841]
[1767957295694,0.002,3097.9,3097.5,3.22841]
[1767957295995,0.002,3097.9,3097.6,0.64569185]
[1767957297413,0.002,3097.9,3097.6,3.87390789]
[1767957299423,0.002,3097.9,3097.6,0.64569185]
[1767957299720,0.002,3097.9,3097.6,3.87398122]
[1767957301917,0.002,3097.9,3097.6,7.102287]
[1767957302121,0.002,3097.9,3097.7,0.80583382]
[1767957302320,0.97734263,3097.9,3097.4,0.254]
[1767957302618,0.97734263,3097.9,3097.5,3.22834528]
[1767957306326,0.97626341,3097.9,3097.5,3.22834528]
[1767957307435,0.00080144,3098.2,3097.6,3.99171726]
[1767957307596,0.00080144,3098.2,3097.8,3.00465964]
[1767957307999,0.00080144,3098.2,3097.8,0.03228097]
[1767957308501,0.00080144,3098.2,3097.8,3.00465964]
[1767957309013,0.00080144,3098.2,3097.9,3.22799315]
[1767957309330,0.00080144,3098.2,3097.9,3.95529282]
[1767957310133,0.00080144,3098.2,3097.9,7.18328597]
[1767957311842,0.00080144,3098.2,3097.9,3.95529282]
[1767957313162,0.00280144,3098.2,3097.9,3.95529282]
[1767957313516,0.00280144,3098.2,3097.9,7.18328597]
[1767957314061,0.00280144,3098.2,3098.0,0.03227888]
[1767957314562,0.00280144,3098.2,3097.9,7.18328597]
[1767957314766,0.00280144,3098.2,3098.0,0.35951138]
[1767957315055,0.00280144,3098.2,3098.1,3.22778477]
[1767957316367,0.95747881,3098.8,3098.1,3.22778477]
[1767957316514,0.95747881,3098.7,3098.1,3.22778477]
[1767957317369,0.95747881,3098.7,3098.1,4.00744176]
[1767957318306,0.95747881,3098.7,3098.0,0.35951138]
[1767957318572,3.96213845,3098.2,3097.8,0.001]
[1767957319673,0.95747881,3098.1,3097.8,0.001]
[1767957320877,0.95747881,3097.9,3097.5,0.0008016]
[1767957321186,0.95747881,3097.7,3097.5,0.0008016]
[1767957323246,3.96213845,3097.9,3097.5,0.0008016]
[1767957323787,0.95747881,3097.8,3097.5,0.0008016]
[1767957324367,6.79964983,3102.1,3097.5,0.98785922]
[1767957324483,0.95747881,3099.4,3098.5,1.02009618]
[1767957324679,0.66550157,3099.3,3098.6,0.98705762]
[1767957324881,3.96213845,3099.4,3098.6,0.98705762]
[1767957325273,3.96213845,3099.4,3098.7,6.45431954]
[1767957325999,0.95747881,3099.4,3098.9,3.00465964]
[1767957327974,0.95747881,3099.4,3098.9,6.23153208]
[1767957328512,0.95747881,3099.4,3098.9,3.00465964]
[1767957331383,1.37605173,3099.4,3098.9,3.00465964]
[1767957332584,0.95747881,3099.4,3098.9,3.00465964]
[1767957334940,0.93974319,3099.3,3098.5,0.90625874]
[1767957335215,0.93974319,3099.3,3098.7,0.254]
[1767957335416,0.93974319,3099.3,3098.5,3.22730365]
[1767957335631,0.93974319,3099.3,3098.5,3.481354]
[1767957335831,0.93974319,3099.2,3098.2,3.00465964]
[1767957336136,0.93974319,3099.2,3098.4,6.48607676]
[1767957337026,4.26652178,3099.3,3098.4,6.48607676]
[1767957337027,0.94174319,3099.1,3098.4,6.48607676]
[1767957337195,0.94174319,3099.1,3098.6,3.00465964]
[1767957338329,0.94174319,3099.1,3098.4,3.48141712]
[1767957338533,0.94174319,3099.1,3098.5,3.00465964]
[1767957339112,0.94174319,3099.1,3098.5,6.23202279]
[1767957339631,0.002,3099.1,3098.7,3.00465964]
[1767957340135,0.94174319,3099.1,3098.7,3.00465964]
[1767957340320,0.94174319,3099.1,3098.5,7.29400824]
[1767957340634,0.002,3099.1,3098.8,3.00465964]
[1767957341006,0.93974319,3099.0,3098.4,0.254]
[1767957341330,0.93974319,3098.9,3098.3,3.22756637]
[1767957342500,0.93974319,3098.9,3098.4,3.22746804]
[1767957342741,0.94174319,3099.1,3098.5,3.00465964]
[1767957343304,0.94174319,3099.1,3098.5,6.20444569]
[1767957343522,0.94174319,3099.1,3098.5,2.97707945]
[1767957344140,4.16850722,3099.1,3098.5,2.97707945]
[1767957344448,0.93974319,3098.9,3097.9,4.16491838]
[1767957344652,0.93974319,3098.9,3098.1,3.22776856]
[1767957345136,0.93974319,3098.9,3098.1,6.2324282]
[1767957346134,0.93974319,3098.9,3098.0,3.4818495]
[1767957346435,0.93974319,3098.8,3098.0,6.23250914]
[1767957346737,0.93974319,3098.8,3098.1,1.03667364]
[1767957347828,0.9828113,3098.7,3098.1,1.03667364]
[1767957348035,0.9828113,3098.7,3097.8,0.255]
[1767957348036,0.9828113,3098.6,3097.8,0.255]
[1767957348228,0.9828113,3098.4,3097.8,0.001]
[1767957350541,0.9828113,3098.3,3097.8,0.001]
[1767957354739,0.90074176,3098.5,3097.8,0.001]
[1767957355764,0.90074176,3098.5,3097.9,3.22799315]
[1767957355969,0.90074176,3098.5,3097.8,4.19868053]
[1767957356264,0.90074176,3098.4,3097.8,0.001]
[1767957356922,0.90074176,3098.4,3097.8,3.22908967]
[1767957357636,0.90074176,3098.4,3097.8,0.001]
[1767957359385,0.90074176,3098.3,3097.8,0.001]
[1767957361844,0.90074176,3098.3,3098.1,0.001]
[1767957362046,1.31355888,3098.3,3098.1,0.001]
[1767957364080,0.98881956,3098.2,3098.1,0.001]
[1767957364258,0.98881956,3098.2,3097.8,0.001]
[1767957365992,0.98881956,3098.2,3097.5,0.0008016]
[1767957366160,0.98881956,3098.0,3097.5,0.0008016]
[1767957366877,1.73324961,3098.0,3097.5,0.0008016]
[1767957369088,0.254,3098.2,3097.5,0.95437223]
[1767957371608,3.22778477,3098.1,3097.5,0.95437223]
[1767957372957,4.21660433,3098.1,3097.5,0.0008016]
[1767957373288,7.4443891,3098.1,3097.5,0.0008016]
[1767957373464,0.98881956,3098.0,3097.8,0.001]
[1767957373659,0.98881956,3098.0,3097.5,0.0008016]
[1767957373660,1.75865847,3098.0,3097.5,0.0008016]
[1767957373863,3.22999315,3097.9,3097.5,0.0008016]
[1767957374791,3.22799316,3097.9,3097.5,0.0008016]
[1767957376558,7.44480587,3097.9,3097.5,0.0008016]
[1767957376994,4.21681272,3097.9,3097.5,0.0008016]
[1767957377183,5.03826924,3097.9,3097.5,0.0008016]
[1767957378208,0.82345652,3097.9,3097.5,0.0008016]
[1767957378504,0.002,3097.9,3097.5,0.0008016]
[1767957379172,3.23000057,3097.9,3097.5,0.0008016]
[1767957379493,0.002,3097.9,3097.5,0.0008016]
[1767957382092,0.00081607,3097.6,3097.2,3.94112922]
[1767957383579,0.00081607,3097.6,3097.3,0.95357063]
[1767957385720,0.00281607,3097.6,3097.3,0.95357063]
[1767957386385,0.00281607,3097.6,3097.1,3.22878424]
[1767957386386,0.00281607,3097.6,3097.1,0.95357063]
[1767957386913,0.00281607,3097.6,3097.2,0.95357063]
[1767957387094,0.00281607,3097.6,3097.2,4.94881981]
[1767957388300,0.00281607,3097.6,3097.2,1.72010073]
[1767957392070,0.00281607,3097.6,3097.2,4.94880531]
[1767957393332,0.00281607,3097.6,3097.2,1.72010073]
[1767957393535,0.00281607,3097.6,3097.2,0.7665301]
[1767957393714,0.00281607,3097.6,3097.3,0.92932978]
[1767957394657,0.002,3097.9,3097.5,0.92932978]
[1767957397656,0.002,3097.6,3097.5,0.92932978]